bitfinex-derivatives/quotes_BTCF0:USTF0_20250121
["timestamp","ask_amount","ask_price","bid_price","bid_amount"]
[1737436360870,0.51102411,102010.0,102000.0,0.05500177]
[1737436361675,0.51102411,102010.0,102000.0,0.03988202]
[1737436362174,0.58172411,102010.0,102000.0,0.03988202]
[1737436363276,0.58172411,102010.0,102000.0,0.05499867]
[1737436363871,0.59729205,102010.0,102000.0,0.05499867]
[1737436364177,0.59729205,102010.0,102000.0,0.0396601]
[1737436364967,0.59729205,102010.0,102000.0,0.0550027]
[1737436365374,0.59729205,102010.0,102000.0,0.07034537]
[1737436365577,0.59729205,102010.0,102000.0,0.05522872]
[1737436366370,0.59729205,102010.0,102000.0,0.03988605]
[1737436371181,0.039267,102000.0,101980.0,0.039269]
[1737436371483,0.15014786,102000.0,101990.0,0.23336262]
[1737436371683,0.51094786,102000.0,101990.0,0.23336262]
[1737436372086,0.51094786,102000.0,101990.0,6.2e-07]
[1737436372087,0.66109572,102000.0,101990.0,6.2e-07]
[1737436372388,0.039272,101980.0,101970.0,9.156e-05]
[1737436372576,0.8718236,101980.0,101970.0,9.156e-05]
[1737436373174,0.8325516,101980.0,101960.0,0.01516993]
[1737436373375,7.074e-05,101980.0,101970.0,0.3608]
[1737436373580,0.05482894,102010.0,101990.0,0.039266]
[1737436373770,0.039261,102010.0,102000.0,0.7216]
[1737436374172,0.23635583,102010.0,102000.0,0.3608]
[1737436374385,0.15014186,102010.0,102000.0,0.3608]
[1737436374583,0.15023597,102010.0,102000.0,0.3608]
[1737436375182,0.22293597,102010.0,102000.0,0.3608]
[1737436375586,0.11205511,102010.0,102000.0,0.3608]
[1737436375782,0.18599417,102010.0,102000.0,0.3608]
[1737436375981,0.20038455,102010.0,102000.0,0.3608]
[1737436376582,0.20038455,102010.0,101990.0,0.400067]
[1737436376786,0.039264,102000.0,101990.0,0.400067]
[1737436377286,0.039264,102000.0,101990.0,0.41540828]
[1737436377989,0.039264,102000.0,101990.0,0.37614128]
[1737436379384,0.11320306,102000.0,101990.0,0.37614128]
[1737436380384,0.039264,102000.0,101990.0,0.3608]
[1737436380792,0.11320306,102000.0,101990.0,0.3608]
[1737436381187,0.039264,102000.0,101990.0,0.3608]
[1737436381391,0.039264,102000.0,101990.0,0.43473906]
[1737436381689,0.05374549,102010.0,101990.0,0.57205108]
[1737436381884,9.411e-05,102010.0,102000.0,0.54510306]
[1737436382086,0.00147101,102030.0,102010.0,0.03926]
[1737436382292,0.11479919,102020.0,102010.0,0.03926]
[1737436382484,0.14497,102030.0,102020.0,0.039256]
[1737436382688,0.14349899,102030.0,102020.0,0.47399506]
[1737436382884,0.14349899,102030.0,102020.0,0.55129132]
[1737436383080,0.14359284,102030.0,102020.0,0.64932573]
[1737436383287,0.14359284,102030.0,102020.0,0.57202947]
[1737436383679,0.14359284,102030.0,102020.0,0.49809041]
[1737436384194,0.14359284,102030.0,102020.0,0.60891492]
[1737436384488,0.17219879,102040.0,102030.0,0.039253]
[1737436384691,0.17219879,102040.0,102030.0,0.51087751]
[1737436385094,0.17219879,102040.0,102030.0,0.49806819]
[1737436385494,0.17228088,102040.0,102030.0,0.49806819]
[1737436386193,8.209e-05,102040.0,102030.0,0.49806819]
[1737436386789,8.209e-05,102040.0,102030.0,0.6088927]
[1737436387793,8.209e-05,102040.0,102030.0,0.7296927]
[1737436387997,8.209e-05,102040.0,102030.0,0.61886819]
[1737436388994,8.209e-05,102040.0,102030.0,0.7296927]
[1737436389691,8.209e-05,102040.0,102030.0,0.61886819]
[1737436389904,0.03933109,102040.0,102030.0,0.61886819]
[1737436390396,8.209e-05,102040.0,102030.0,0.61886819]
[1737436390692,8.209e-05,102040.0,102030.0,0.6088927]
[1737436390894,8.209e-05,102040.0,102030.0,0.6839927]
[1737436393298,0.41008209,102040.0,102030.0,0.6839927]
[1737436396203,0.14145225,102060.0,102030.0,0.6839927]
[1737436396402,0.14145225,102060.0,102050.0,0.400045]
[1737436397102,0.14145225,102060.0,102050.0,0.49805058]
[1737436398303,0.25227676,102060.0,102050.0,0.3608]
[1737436398805,1.66227676,102060.0,102050.0,0.3608]
[1737436399001,1.66227676,102060.0,102030.0,0.3608]
[1737436399299,0.15007351,102040.0,102030.0,0.45878637]
[1737436399501,0.039249,102040.0,102030.0,0.85883837]
[1737436399895,0.1518,102040.0,102030.0,0.85883837]
[1737436400090,0.14145125,102060.0,102030.0,0.96966288]
[1737436400289,0.14145125,102060.0,102040.0,0.3608]
[1737436400496,0.14145125,102060.0,102050.0,0.400045]
[1737436401005,0.14145125,102060.0,102040.0,0.3608]
[1737436401006,0.039245,102050.0,102040.0,0.400048]
[1737436401504,0.039245,102050.0,102040.0,0.49803437]
[1737436402003,0.0549071,102060.0,102050.0,0.039245]
[1737436402194,0.0549071,102060.0,102050.0,0.400045]
[1737436402394,0.0156651,102060.0,102040.0,0.3608]
[1737436402598,0.039245,102050.0,102040.0,0.400047]
[1737436402898,0.039245,102050.0,102040.0,0.49804298]
[1737436403998,0.11312081,102050.0,102040.0,0.49804298]
[1737436404207,0.11312081,102050.0,102040.0,0.3608]
[1737436406003,0.11312081,102050.0,102040.0,0.36128422]
[1737436407491,0.11312081,102050.0,102040.0,0.00048422]
[1737436408002,0.039252,102030.0,102020.0,0.36227014]
[1737436408309,0.11312781,102030.0,102020.0,0.00147014]
[1737436408607,0.039252,102030.0,102020.0,0.13872212]
[1737436410108,0.039252,102030.0,102020.0,0.49952212]
[1737436411205,0.109052,102030.0,102020.0,0.49952212]
[1737436411907,0.109052,102030.0,102020.0,0.36227014]
[1737436413409,0.18292781,102030.0,102020.0,0.00147014]
[1737436414102,0.039264,102000.0,101990.0,0.3608]
[1737436414307,0.18701562,102000.0,101990.0,0.3608]
[1737436414506,0.18701562,102000.0,101980.0,0.29165783]
[1737436414507,0.039268,101990.0,101980.0,0.29165783]
[1737436414696,0.25914381,101990.0,101980.0,0.29165783]
[1737436415103,0.25914381,101990.0,101980.0,0.66780248]
[1737436416513,0.185268,101990.0,101980.0,0.80512811]
[1737436417511,0.185268,101990.0,101980.0,0.78978346]
[1737436417805,0.0758,102000.0,101990.0,0.039268]
[1737436418004,0.116061,102010.0,101990.0,0.43467581]
[1737436418207,0.116061,102010.0,102000.0,0.400064]
[1737436419009,0.116061,102010.0,102000.0,0.49810321]
[1737436419010,0.3346788,102010.0,102000.0,0.49810321]
[1737436419411,0.26080299,102010.0,102000.0,0.49810321]
[1737436421305,0.22154199,102010.0,102000.0,0.49810321]
[1737436421607,0.14474199,102010.0,102000.0,0.57197902]
[1737436421808,0.14474199,102010.0,102000.0,0.49810321]
[1737436422198,0.0865898,102010.0,102000.0,0.49810321]
[1737436422907,0.0865898,102010.0,102000.0,0.64585483]
[1737436423108,0.35766484,102030.0,102000.0,0.63087902]
[1737436423304,0.35766484,102030.0,102020.0,0.400056]
[1737436423605,0.31841184,102030.0,102020.0,0.760856]
[1737436424004,0.31841184,102030.0,102020.0,0.85889041]
[1737436425911,0.31694078,102030.0,102020.0,0.93276622]
[1737436426113,0.1428,102040.0,102030.0,0.039252]
[1737436426415,0.21667581,102040.0,102030.0,0.400052]
[1737436426600,0.1428,102040.0,102030.0,0.400052]
[1737436426807,0.1428,102040.0,102030.0,0.49806719]
[1737436427422,0.18398699,102050.0,102030.0,0.571943]
[1737436427616,0.14474199,102050.0,102040.0,0.400049]
[1737436428307,0.14474199,102050.0,102040.0,0.49805458]
[1737436428503,0.14474199,102050.0,102040.0,0.57193039]
[1737436428706,0.14474199,102050.0,102040.0,0.62435458]
[1737436428913,0.14474199,102050.0,102040.0,0.63968715]
[1737436429513,0.36188826,102060.0,102040.0,0.63968715]
[1737436429713,0.36188826,102060.0,102050.0,0.3608]
[1737436429915,0.36188826,102060.0,102050.0,0.37613257]
[1737436430114,0.41442875,102060.0,102050.0,0.37613257]
[1737436430519,0.41442875,102060.0,102050.0,0.47412855]
[1737436431411,0.34055294,102060.0,102050.0,0.47412855]
[1737436431612,0.30131194,102060.0,102050.0,0.51337355]
[1737436431810,0.37518775,102060.0,102050.0,0.51337355]
[1737436432112,0.84910456,102060.0,102020.0,0.3608]
[1737436432312,0.11312781,102030.0,102020.0,0.3608]
[1737436432512,1.449256,102020.0,102010.0,0.40520579]
[1737436432708,1.449256,102020.0,102010.0,0.04440579]
[1737436433012,0.039256,102020.0,102010.0,0.46025664]
[1737436433407,0.039256,102020.0,102010.0,0.75191447]
[1737436435517,0.184953,102030.0,102010.0,0.79117247]
[1737436435819,0.25882881,102030.0,102020.0,0.3608]
[1737436436513,0.25882881,102030.0,102020.0,0.45881519]
[1737436436911,0.4035708,102030.0,102020.0,0.45881519]
[1737436437108,0.4035708,102030.0,102020.0,0.49807119]
[1737436437321,0.41643643,102030.0,102020.0,0.49807119]
[1737436439917,0.27169444,102030.0,102020.0,0.49807119]
[1737436440722,0.27169444,102030.0,102020.0,0.3608]
[1737436440924,0.27169444,102030.0,102020.0,0.49807119]
[1737436441223,0.1457,102030.0,102020.0,0.49807119]
[1737436444021,0.21957581,102030.0,102020.0,0.49807119]
[1737436444213,0.21957581,102030.0,102020.0,0.51340768]
[1737436444629,0.25882781,102030.0,102020.0,0.51340768]
[1737436445125,0.1457,102030.0,102020.0,0.51340768]
[1737436445326,0.1457,102030.0,102020.0,0.51340765]
[1737436445727,0.12806525,102040.0,102020.0,0.47415165]
[1737436445928,0.33150362,102030.0,102020.0,0.01533646]
[1737436446227,1.74150362,102030.0,102020.0,0.01533646]
[1737436446422,1.66762781,102030.0,102020.0,0.01533646]
[1737436446823,2.02842781,102030.0,102020.0,0.01533646]
[1737436447021,0.039256,102020.0,102010.0,0.00147027]
[1737436447320,0.03926,102010.0,102000.0,0.59501266]
[1737436447519,0.11313581,102010.0,102000.0,0.23421266]
[1737436447720,0.11313581,102010.0,102000.0,0.52701265]
[1737436447925,0.11313581,102010.0,102000.0,0.18155524]
[1737436448123,0.11313581,102010.0,102000.0,0.54235524]
[1737436449235,0.11313581,102010.0,102000.0,0.52701265]
[1737436450822,0.84781162,102010.0,101990.0,0.29165783]
[1737436451015,0.84781162,102010.0,101980.0,0.3499894]
[1737436451016,0.039268,101990.0,101980.0,0.3499894]
[1737436451221,0.47394381,101990.0,101980.0,0.3499894]
[1737436451417,0.55024381,101990.0,101970.0,0.1773572]
[1737436451626,0.11314781,101980.0,101970.0,0.1773572]
[1737436451834,0.11314781,101980.0,101970.0,0.1927032]
[1737436452126,0.039272,101980.0,101970.0,0.33003283]
[1737436452327,0.039272,101980.0,101970.0,0.69083283]
[1737436452727,1.56017581,101990.0,101970.0,0.65155683]
[1737436452925,0.14474199,102010.0,101990.0,0.039268]
[1737436453121,0.14474199,102010.0,102000.0,0.83473981]
[1737436453632,0.14474199,102010.0,102000.0,0.96713167]
[1737436453828,0.14474199,102010.0,102000.0,0.89325586]
[1737436454030,0.14474199,102010.0,102000.0,0.85889841]
[1737436454737,0.14474199,102010.0,102000.0,0.49809841]
[1737436455427,0.11313581,102010.0,101980.0,0.65175747]
[1737436455634,0.11314381,101990.0,101980.0,0.21515747]
[1737436455834,0.11314381,101990.0,101980.0,0.27392088]
[1737436456126,0.11314381,101990.0,101980.0,0.17588647]
[1737436456522,0.039268,101990.0,101980.0,0.17588647]
[1737436456718,0.11314381,101990.0,101980.0,0.17588647]
[1737436457621,0.1502313,101990.0,101980.0,0.17588647]
[1737436458024,0.039268,101990.0,101980.0,0.17588647]
[1737436458935,0.15467416,101990.0,101970.0,0.400075]
[1737436459235,0.15467416,101990.0,101970.0,0.51347337]
[1737436461136,0.15467416,101990.0,101970.0,0.47419837]
[1737436461336,0.15467416,101990.0,101980.0,0.039272]
[1737436461635,0.15467416,101990.0,101980.0,0.05461674]
[1737436461829,0.15467416,101990.0,101980.0,0.41541674]
[1737436462136,0.11540616,101990.0,101980.0,0.51347518]
[1737436463932,0.11540616,101990.0,101980.0,0.15267518]
[1737436464139,0.15467416,101990.0,101980.0,0.51347518]
[1737436464338,0.15467416,101990.0,101980.0,0.41541674]
[1737436466034,0.15467416,101990.0,101980.0,0.51347037]
[1737436467429,0.11540616,101990.0,101980.0,0.51347037]
[1737436467631,0.11540616,101990.0,101980.0,0.65957037]
[1737436467840,0.11540616,101990.0,101980.0,0.77053367]
[1737436468039,0.14474199,102000.0,101980.0,0.80489925]
[1737436468234,0.14474199,102000.0,101990.0,0.469568]
[1737436468435,0.14474199,102000.0,101990.0,0.63024162]
[1737436468836,0.14474199,102000.0,101990.0,0.72829044]
[1737436469737,0.14474199,102000.0,101990.0,0.77124245]
[1737436469938,0.14474199,102010.0,102000.0,0.039264]
[1737436470139,0.14474199,102010.0,102000.0,0.41540874]
[1737436470539,0.14474199,102010.0,102000.0,0.51344315]
[1737436471944,0.35802695,102020.0,102010.0,0.03926]
[1737436471945,0.17219879,102020.0,102010.0,0.03926]
[1737436472146,0.183849,102040.0,102020.0,0.039253]
[1737436472346,0.2948123,102040.0,102020.0,0.41539774]
[1737436472541,0.2948123,102040.0,102030.0,0.039252]
[1737436472738,0.2948123,102040.0,102030.0,0.05459674]
[1737436473046,0.183849,102040.0,102030.0,0.41539674]
[1737436473240,0.25913818,102050.0,102040.0,0.039249]
[1737436473435,0.25829818,102050.0,102040.0,0.41539374]
[1737436473649,0.38136376,102050.0,102040.0,0.41539374]
[1737436473944,0.27040046,102050.0,102040.0,0.51339932]
[1737436474339,0.38136376,102050.0,102040.0,0.51339932]
[1737436474545,0.49919697,102050.0,102040.0,0.51339932]
[1737436475041,0.49919697,102050.0,102040.0,0.49805458]
[1737436475238,0.49919697,102050.0,102040.0,0.51338915]
[1737436477151,0.49919697,102050.0,102040.0,0.51338853]
[1737436477750,0.0687,102050.0,102040.0,0.51338853]
[1737436481162,0.0687,102050.0,102040.0,0.51338805]
[1737436481861,0.0687,102050.0,102040.0,0.58725886]
[1737436482054,0.0687,102050.0,102040.0,0.51338805]
[1737436482364,0.1248427,102060.0,102050.0,0.039245]
[1737436482662,1.5348427,102060.0,102050.0,0.41537847]
[1737436483062,1.60871351,102060.0,102050.0,0.41537847]
[1737436483258,0.19871351,102060.0,102050.0,0.41537847]
[1737436483464,0.1248427,102060.0,102050.0,0.41537847]
[1737436483864,1.5348427,102060.0,102050.0,0.41537847]
[1737436484267,0.1248427,102060.0,102050.0,0.01533347]
[1737436484962,0.19871351,102060.0,102050.0,0.01533347]
[1737436485868,0.1248427,102060.0,102050.0,0.01533347]
[1737436486862,0.1248427,102060.0,102050.0,0.05457847]
[1737436491970,0.1248427,102060.0,102050.0,0.41537847]
[1737436493377,0.1248427,102060.0,102050.0,0.48924928]
[1737436493567,0.12337224,102060.0,102050.0,0.41537847]
[1737436494169,0.08413024,102060.0,102050.0,0.400045]
[1737436494365,0.08413024,102060.0,102050.0,0.49803137]
[1737436494566,0.08413024,102060.0,102050.0,0.57190218]
[1737436494974,0.039248,102050.0,102030.0,0.41193307]
[1737436495163,0.039248,102050.0,102030.0,0.05458701]
[1737436495164,0.0743,102040.0,102030.0,0.05458701]
[1737436495368,0.1481,102040.0,102030.0,0.15257338]
[1737436495867,0.187349,102040.0,102030.0,0.15257338]
[1737436498664,0.26121981,102040.0,102030.0,0.01533501]
[1737436498978,0.62201981,102040.0,102030.0,0.01533501]
[1737436499173,0.26121981,102040.0,102030.0,0.01533501]
[1737436499477,0.62201981,102040.0,102030.0,0.01533501]
[1737436500267,2.04391273,102040.0,102030.0,0.01533501]
[1737436500476,0.56004192,102040.0,102030.0,0.05458801]
[1737436500771,0.19924192,102040.0,102030.0,0.44974382]
[1737436500978,0.19924192,102040.0,102030.0,0.44974575]
[1737436501164,0.15999292,102040.0,102030.0,0.52361656]
[1737436501370,0.08619292,102040.0,102030.0,0.62161823]
[1737436501577,0.08619292,102040.0,102030.0,0.62161895]
[1737436501876,0.0743,102040.0,102030.0,0.66455771]
[1737436502077,0.2490088,102050.0,102040.0,0.039249]
[1737436502375,0.2882538,102050.0,102040.0,0.44973766]
[1737436503282,0.2122538,102050.0,102040.0,0.44973766]
[1737436503867,0.22400232,102050.0,102040.0,0.44973766]
[1737436504069,0.18475732,102050.0,102040.0,0.58725273]
[1737436504274,0.18475732,102050.0,102040.0,0.66453452]
[1737436504570,0.1730088,102050.0,102040.0,0.66453452]
[1737436504770,0.1730088,102050.0,102040.0,0.7074679]
[1737436506478,0.28612461,102050.0,102040.0,0.5170663]
[1737436506778,0.25545765,102050.0,102040.0,0.09261524]
[1737436506984,0.18158684,102050.0,102040.0,0.0496815]
[1737436507179,0.18429963,102050.0,102040.0,0.0496815]
[1737436507386,0.61897044,102050.0,102040.0,0.0496815]
[1737436507778,0.11311981,102040.0,102030.0,0.10788646]
[1737436507978,0.54551981,102040.0,102030.0,0.10788646]
[1737436508487,0.471649,102040.0,102030.0,0.10788646]
[1737436509376,0.110849,102040.0,102030.0,0.10788646]
[1737436509579,0.110849,102040.0,102030.0,0.14713946]
[1737436509774,0.110849,102040.0,102030.0,0.22101027]
[1737436509975,0.039249,102040.0,102030.0,0.22101027]
[1737436510177,0.039249,102040.0,102030.0,0.14713946]
[1737436510686,0.039249,102040.0,102030.0,0.039253]
[1737436512088,0.039253,102030.0,102020.0,0.400055]
[1737436512287,0.187853,102030.0,102020.0,0.400055]
[1737436512582,0.261753,102030.0,102020.0,0.3608]
[1737436513883,0.261753,102030.0,102020.0,0.400056]
[1737436514586,0.261753,102030.0,102020.0,0.571942]
[1737436514982,0.40677734,102030.0,102020.0,0.49807119]
[1737436515184,0.40677734,102030.0,102020.0,0.54101696]
[1737436516087,0.40677734,102030.0,102020.0,0.49807119]
[1737436516681,0.40677734,102030.0,102020.0,0.45881519]
[1737436516882,0.039256,102020.0,102000.0,0.79091527]
[1737436517083,0.039256,102020.0,102000.0,0.70864227]
[1737436517282,0.039256,102020.0,102000.0,0.73455746]
[1737436517283,0.11313081,102020.0,102000.0,0.73455746]
[1737436517481,0.03926,102010.0,102000.0,0.73455746]
[1737436517690,0.03926,102010.0,102000.0,0.80842827]
[1737436518381,0.03926,102010.0,102000.0,0.36227049]
[1737436519190,0.03926,102010.0,102000.0,0.4754053]
[1737436519491,0.03926,102010.0,102000.0,0.57343971]
[1737436519883,0.15627733,102020.0,102010.0,0.03926]
[1737436519884,0.14502434,102020.0,102010.0,0.03926]
[1737436520191,0.14502434,102020.0,102010.0,0.55133081]
[1737436520392,0.18428034,102020.0,102010.0,0.47746]
[1737436520685,0.18428034,102020.0,102010.0,0.49809441]
[1737436520890,0.18428034,102020.0,102010.0,0.40006]
[1737436522785,0.18428034,102020.0,102010.0,0.03926]
[1737436522990,0.03926,102010.0,102000.0,0.4754053]
[1737436523192,0.03926,102010.0,102000.0,0.5097674]
[1737436523490,0.18428134,102020.0,102000.0,0.6077922]
[1737436523783,0.18428134,102020.0,102000.0,0.5734301]
[1737436524291,0.18428134,102020.0,102010.0,0.47393081]
[1737436524677,0.14502434,102020.0,102010.0,0.47393081]
[1737436524883,0.3608,102040.0,102010.0,0.75591279]
[1737436525091,0.039249,102040.0,102020.0,0.55032481]
[1737436525590,0.65799697,102050.0,102030.0,0.43467081]
[1737436525891,0.62094197,102050.0,102040.0,0.400049]
[1737436526189,0.43049697,102050.0,102040.0,0.47391981]
[1737436526391,0.43049697,102050.0,102040.0,0.72153019]
[1737436527290,0.28699798,102060.0,102050.0,0.039245]
[1737436527593,0.28699798,102060.0,102050.0,0.400045]
[1737436527794,0.28699798,102060.0,102050.0,0.55031581]
[1737436527983,0.40010979,102060.0,102050.0,0.09798637]
[1737436528178,0.039246,102050.0,102030.0,0.40012992]
[1737436528383,0.11311681,102050.0,102030.0,0.40012992]
[1737436528701,0.18601681,102050.0,102030.0,0.49811629]
[1737436528888,0.112146,102050.0,102030.0,0.5719871]
[1737436529194,0.18601681,102050.0,102030.0,0.49811629]
[1737436530093,0.112146,102050.0,102030.0,0.49811629]
[1737436530288,0.039249,102040.0,102030.0,0.49811629]
[1737436530991,0.039249,102040.0,102030.0,0.5719871]
[1737436531198,0.11311981,102040.0,102030.0,0.5958887]
[1737436531397,0.26691981,102040.0,102030.0,0.2350887]
[1737436531694,0.62771981,102040.0,102030.0,0.2350887]
[1737436532692,2.03771981,102040.0,102030.0,0.2350887]
[1737436532998,2.03771981,102040.0,102030.0,0.16708869]
[1737436533995,2.03781879,102040.0,102030.0,0.16708869]
[1737436534696,1.67701879,102040.0,102030.0,0.16708869]
[1737436534890,2.03781879,102040.0,102030.0,0.16708869]
[1737436535087,1.99856979,102040.0,102010.0,0.47392981]
[1737436535285,0.039255,102030.0,102010.0,0.47392981]
[1737436535490,0.039255,102030.0,102010.0,0.57193539]
[1737436535997,0.039255,102030.0,102020.0,0.400056]
[1737436536208,0.039255,102030.0,102020.0,0.039256]
[1737436536589,0.039255,102030.0,102020.0,0.13727599]
[1737436536794,0.039255,102030.0,102020.0,0.49807599]
[1737436536995,0.039255,102030.0,102020.0,0.13727599]
[1737436538195,0.039255,102030.0,102020.0,0.49807599]
[1737436538594,0.039255,102030.0,102020.0,0.13727599]
[1737436538803,0.15538628,102030.0,102020.0,0.13727599]
[1737436539297,0.039256,102020.0,102010.0,0.3608]
[1737436539504,0.03926,102010.0,102000.0,0.00147049]
[1737436539693,0.03926,102010.0,101990.0,0.29212715]
[1737436539694,0.039264,102000.0,101990.0,0.29212715]
[1737436539895,0.18708931,102000.0,101990.0,0.29212715]
[1737436540092,0.4740185,102000.0,101990.0,0.29212715]
[1737436540293,0.54788931,102000.0,101990.0,0.29212715]
[1737436540497,0.54788931,102000.0,101990.0,0.24469713]
[1737436540699,0.039268,101990.0,101980.0,0.63316565]
[1737436540894,0.47393881,101990.0,101980.0,0.63316565]
[1737436541093,0.47393881,101990.0,101980.0,0.64851146]
[1737436542599,0.47393881,101990.0,101980.0,0.63316565]
[1737436544403,0.039272,101980.0,101970.0,0.3608]
[1737436544803,0.039272,101980.0,101970.0,0.45886325]
[1737436544997,0.039272,101980.0,101970.0,0.55010904]
[1737436545198,0.039272,101980.0,101970.0,0.66325585]
[1737436545505,0.039272,101980.0,101970.0,0.58938504]
[1737436547708,0.039272,101980.0,101970.0,0.55010904]
[1737436548006,0.11314281,101980.0,101970.0,0.55010904]
[1737436548605,0.11314281,101980.0,101970.0,0.47420904]
[1737436549013,0.11314281,101980.0,101970.0,0.37614579]
[1737436552309,0.11314281,101980.0,101970.0,0.01534579]
[1737436552604,0.33274281,101980.0,101970.0,0.01534579]
[1737436552996,0.34405352,101980.0,101970.0,0.01534579]
[1737436553308,0.70485352,101980.0,101970.0,0.01534579]
[1737436554001,0.77881306,101980.0,101970.0,0.01534579]
[1737436554204,0.039276,101970.0,101960.0,0.03837107]
[1737436554399,0.54781762,101970.0,101940.0,0.43742588]
[1737436554596,0.039283,101950.0,101940.0,0.43742588]
[1737436554805,0.039283,101950.0,101940.0,0.53548913]
[1737436558306,0.11315381,101950.0,101940.0,0.53548913]
[1737436558899,0.12443823,101950.0,101940.0,0.45898913]
[1737436559094,0.12443823,101950.0,101940.0,0.00012588]
[1737436559095,0.12455178,101950.0,101940.0,0.00012588]
[1737436559302,0.35175178,101950.0,101940.0,0.02468579]
[1737436559701,0.12455178,101950.0,101940.0,0.02468579]
[1737436559902,0.05068097,101950.0,101940.0,0.19947789]
[1737436560102,0.05068097,101950.0,101940.0,0.23876489]
[1737436560303,0.03939655,101950.0,101940.0,0.23876489]
[1737436560503,0.03939655,101950.0,101940.0,0.59956489]
[1737436560705,0.00011355,101950.0,101940.0,0.6734357]
[1737436560901,0.00011355,101950.0,101940.0,0.64887579]
[1737436561100,0.00011355,101950.0,101940.0,0.57500498]
[1737436561503,0.039281,101960.0,101950.0,0.039283]
[1737436561702,0.039281,101960.0,101950.0,0.400083]
[1737436562113,0.11315181,101960.0,101950.0,0.4981751]
[1737436562507,0.1132507,101960.0,101950.0,0.4981751]
[1737436562906,0.1132507,101960.0,101940.0,0.47691288]
[1737436563213,0.11315381,101950.0,101940.0,0.57499536]
[1737436565014,0.039283,101950.0,101940.0,0.57499536]
[1737436565218,0.11315381,101950.0,101940.0,0.57499536]
[1737436566812,0.11315381,101950.0,101940.0,0.59034483]
[1737436568023,0.11315381,101950.0,101940.0,0.51364483]
[1737436569120,0.039283,101950.0,101940.0,0.51364483]
[1737436569321,9.889e-05,101960.0,101950.0,0.039283]
[1737436569517,9.889e-05,101960.0,101950.0,0.472383]
[1737436569914,9.889e-05,101960.0,101950.0,0.57046548]
[1737436570424,0.2027557,101960.0,101950.0,0.62878806]
[1737436570629,0.2027557,101960.0,101950.0,0.70265887]
[1737436570816,0.2027557,101960.0,101950.0,0.73703456]
[1737436571011,0.2027557,101960.0,101950.0,0.72168509]
[1737436571616,0.2027557,101960.0,101950.0,0.64781428]
[1737436572226,0.2027557,101960.0,101950.0,0.6873094]
[1737436572629,0.2027557,101960.0,101950.0,1.02168383]
[1737436572831,0.17402768,101980.0,101960.0,0.11314981]
[1737436573018,0.50870778,102000.0,101990.0,0.039268]
[1737436573220,0.50870778,102000.0,101990.0,0.760868]
[1737436573515,0.50870778,102000.0,101990.0,0.85895048]
[1737436574638,0.07387081,102000.0,101990.0,0.85895048]
[1737436575130,0.31578962,102010.0,101990.0,0.85895048]
[1737436575428,0.31578962,102010.0,102000.0,0.473664]
[1737436575629,0.21363957,102010.0,102000.0,0.473664]
[1737436575924,0.20265681,102010.0,102000.0,0.552464]
[1737436576129,0.20265681,102010.0,102000.0,0.75872797]
[1737436577328,0.20265681,102010.0,102000.0,0.72436922]
[1737436577721,0.20265681,102010.0,102000.0,0.79570427]
[1737436577919,0.23218016,102020.0,102000.0,1.061349]
[1737436578122,0.23218016,102020.0,102010.0,0.40006]
[1737436578323,0.23218016,102020.0,102010.0,0.51091059]
[1737436578837,0.23218016,102020.0,102010.0,0.64329671]
[1737436579330,0.23218016,102020.0,102010.0,0.608945]
[1737436579533,0.01128853,102040.0,102010.0,0.608945]
[1737436579733,0.30749659,102050.0,102030.0,0.760853]
[1737436579938,0.30749659,102050.0,102040.0,0.3608]
[1737436582032,1.71749659,102050.0,102040.0,0.3608]
[1737436582533,1.72805097,102050.0,102040.0,0.3608]
[1737436583128,0.31805097,102050.0,102040.0,0.3608]
[1737436583434,0.20720038,102050.0,102040.0,0.3608]
[1737436583635,1.61720038,102050.0,102040.0,0.3608]
[1737436585354,1.72805097,102050.0,102040.0,0.3608]
[1737436585833,1.72805097,102050.0,102030.0,0.478753]
[1737436585834,2.19970156,102050.0,102020.0,0.3608]
[1737436586034,0.039259,102020.0,102000.0,0.48033346]
[1737436586231,0.15011059,102010.0,102000.0,0.00147046]
[1737436586435,0.40006,102010.0,102000.0,0.09946644]
[1737436586832,0.4387,102020.0,102000.0,0.57111703]
[1737436587140,0.4387,102020.0,102010.0,0.03926]
[1737436587831,0.4387,102020.0,102010.0,0.13729441]
[1737436588143,0.400056,102020.0,102010.0,0.0692944]
[1737436588539,0.039256,102020.0,102010.0,0.1085544]
[1737436589245,0.51090659,102020.0,102010.0,0.1085544]
[1737436589453,0.58750659,102020.0,102010.0,0.1085544]
[1737436589845,0.54825059,102020.0,102000.0,0.04073346]
[1737436590046,0.03926,102010.0,102000.0,0.04073346]
[1737436590246,0.03926,102010.0,102000.0,0.13875826]
[1737436591048,0.0766,102020.0,102010.0,0.03926]
[1737436591254,0.553353,102030.0,102010.0,0.03926]
[1737436591551,0.56428474,102030.0,102010.0,0.15011059]
[1737436591750,0.56428474,102030.0,102010.0,0.13729441]
[1737436592055,0.3608,102020.0,102010.0,0.13729441]
[1737436592354,0.3608,102020.0,102010.0,0.21369441]
[1737436595953,0.01093174,102030.0,102020.0,0.039256]
[1737436596153,0.115849,102040.0,102020.0,0.400053]
[1737436596357,0.115849,102040.0,102030.0,0.039253]
[1737436597254,0.115849,102040.0,102030.0,0.13725858]
[1737436598154,0.551845,102050.0,102040.0,0.039249]
[1737436598357,0.1518,102050.0,102040.0,0.039249]
[1737436598553,0.476442,102060.0,102030.0,0.51090359]
[1737436598756,0.12640303,102060.0,102050.0,0.039245]
[1737436599347,0.48720303,102060.0,102050.0,0.039245]
[1737436599553,0.12640303,102060.0,102050.0,0.039245]
[1737436599761,0.0764,102060.0,102050.0,0.13724098]
[1737436600147,0.0764,102060.0,102050.0,0.49804098]
[1737436600351,0.0764,102060.0,102050.0,0.13724098]
[1737436600656,0.83667304,102070.0,102050.0,0.13724098]
[1737436600859,0.3608,102060.0,102050.0,0.29274098]
[1737436601558,0.73641857,102070.0,102050.0,0.29274098]
[1737436601852,0.3608,102060.0,102050.0,0.29274098]
[1737436602053,0.15009159,102060.0,102050.0,0.13724098]
[1737436602255,0.51089159,102060.0,102050.0,0.09799598]
[1737436602460,0.039245,102050.0,102040.0,0.039248]
[1737436602752,0.473545,102050.0,102040.0,0.13722957]
[1737436604950,0.473545,102050.0,102040.0,0.09798157]
[1737436605158,0.473545,102050.0,102020.0,0.23318647]
[1737436605159,0.039253,102030.0,102020.0,0.23318647]
[1737436605356,0.51090359,102030.0,102020.0,0.23318647]
[1737436605751,0.51090359,102030.0,102010.0,0.29040098]
[1737436605752,0.039256,102020.0,102010.0,0.29040098]
[1737436605953,0.51090659,102020.0,101980.0,0.81395044]
[1737436606158,0.51090659,102020.0,101980.0,0.33467944]
[1737436606159,0.400068,101990.0,101980.0,0.33467944]
[1737436606356,0.51091859,101990.0,101980.0,0.33467944]